bitfinex-derivatives/quotes_SOLF0:USTF0_20250929
["timestamp","ask_amount","ask_price","bid_price","bid_amount"]
[1759130044764,7.28,208.14,208.09,1.30189178]
[1759130044966,7.28,208.14,208.1,7.8]
[1759130045170,1.16620193,208.16,208.1,7.8]
[1759130045371,67.2474,208.11,208.03,5.3985388]
[1759130045564,68.54649178,208.12,208.01,54.84]
[1759130045565,1.30189178,208.1,208.01,54.84]
[1759130045759,7.28,208.09,208.0,106.64189178]
[1759130045964,4.3238,208.07,208.0,105.34]
[1759130046162,4.3238,208.07,208.0,127.28189178]
[1759130046163,11.6038,208.07,208.0,127.28189178]
[1759130046675,11.6038,208.07,208.0,7.8]
[1759130046873,7.28,208.04,207.98,1.30189178]
[1759130047172,7.28,208.04,207.97,125.98]
[1759130047775,7.28,208.01,207.96,349.94]
[1759130047978,7.28,208.01,207.94,7.8]
[1759130048274,7.28,207.97,207.9,7.8]
[1759130049477,11.6059,207.97,207.9,7.8]
[1759130050164,7.28,207.97,207.9,7.8]
[1759130050776,67.2775,208.02,208.0,13.32027822]
[1759130050974,67.2732,208.03,208.0,13.32027822]
[1759130051176,67.2732,208.03,208.0,6.876e-05]
[1759130051372,4.3251,208.01,208.0,6.876e-05]
[1759130052074,5.62699178,208.01,208.0,6.876e-05]
[1759130052678,6.63699178,208.01,208.0,6.876e-05]
[1759130059179,7.11699178,208.01,208.0,6.876e-05]
[1759130060578,6.63699178,208.01,208.0,6.876e-05]
[1759130062083,124.71699178,208.01,208.0,6.876e-05]
[1759130062690,6.63699178,208.01,208.0,6.876e-05]
[1759130062885,124.71699178,208.01,208.0,6.876e-05]
[1759130063983,123.4151,208.01,208.0,6.876e-05]
[1759130065283,123.3551,208.01,208.0,6.876e-05]
[1759130068692,124.65699178,208.01,208.0,6.876e-05]
[1759130069086,125.77885561,208.01,208.0,6.876e-05]
[1759130071496,125.73885561,208.01,208.0,6.876e-05]
[1759130073289,126.21885561,208.01,208.0,6.876e-05]
[1759130073697,126.23885561,208.01,208.0,6.876e-05]
[1759130075894,1.05,207.91,207.85,7.85]
[1759130076094,117.88,207.9,207.85,7.85]
[1759130076293,1.05,207.91,207.85,7.85]
[1759130076493,118.02,207.9,207.85,7.85]
[1759130076899,118.02,207.9,207.84,1.30189178]
[1759130077095,119.07,207.9,207.85,1.30189178]
[1759130077298,119.07,207.9,207.86,7.85]
[1759130077696,4.3279,207.88,207.86,7.85]
[1759130077897,122.3479,207.88,207.85,1.30189178]
[1759130078296,4.3279,207.88,207.86,7.85]
[1759130078602,122.3079,207.88,207.86,7.85]
[1759130078790,122.3079,207.88,207.85,1.30189178]
[1759130078996,122.3079,207.88,207.86,7.85]
[1759130079196,4.3274,207.9,207.85,1.30189178]
[1759130079399,210.4807,208.02,207.8,355.3385388]
[1759130079400,67.2896,207.98,207.88,7.85]
[1759130079599,2.25215916,207.97,207.89,1.30189178]
[1759130079900,120.23215916,207.97,207.89,1.30189178]
[1759130080095,119.03,207.97,207.89,1.30189178]
[1759130080595,4.3269,207.93,207.89,1.30189178]
[1759130080796,117.98,207.92,207.9,7.85]
[1759130082402,122.3071,207.92,207.9,7.85]
[1759130082597,123.3571,207.92,207.87,1.30189178]
[1759130082803,123.3571,207.92,207.88,7.85]
[1759130086204,4.3273,207.91,207.88,7.85]
[1759130086402,4.3273,207.91,207.87,1.30189178]
[1759130086601,4.3273,207.91,207.88,7.85]
[1759130087003,4.3273,207.91,207.87,1.30189178]
[1759130087201,1.05,207.91,207.82,7.85]
[1759130087404,1.05,207.91,207.84,7.85]
[1759130088603,4.3278,207.88,207.81,2.03601922]
[1759130088806,4.3278,207.88,207.82,7.85]
[1759130089498,1.05,207.91,207.85,7.85]
[1759130089499,4.3272,207.91,207.85,7.85]
[1759130091403,4.3275,207.9,207.84,2.03601922]
[1759130092304,4.3275,207.9,207.85,7.85]
[1759130092810,4.3275,207.9,207.84,2.03601922]
[1759130093010,4.3275,207.9,207.85,7.85]
[1759130093399,4.3275,207.9,207.84,2.03601922]
[1759130093608,4.3275,207.9,207.85,7.85]
[1759130093805,4.3275,207.9,207.85,8.03]
[1759130094006,4.327,207.92,207.85,8.03]
[1759130095612,4.327,207.92,207.85,4.3283]
[1759130095807,4.327,207.92,207.86,8.03]
[1759130096003,4.327,207.92,207.85,4.3283]
[1759130096004,4.3265,207.94,207.88,8.03]
[1759130101909,67.3165,207.9,207.83,5.20093718]
[1759130102116,1.02,207.88,207.81,8.03]
[1759130102713,5.3478,207.88,207.81,8.03]
[1759130104307,4.3281,207.87,207.81,8.03]
[1759130104514,1.02,207.95,207.81,8.03]
[1759130104810,91.21833644,207.95,207.81,16.12525846]
[1759130105017,4.3273,207.91,207.82,8.03]
[1759130106618,4.3273,207.91,207.83,8.03]
[1759130107619,1.02,207.91,207.83,8.03]
[1759130108619,4.3277,207.89,207.83,8.03]
[1759130108831,1.02,207.91,207.83,8.03]
[1759130109211,1.02,207.94,207.82,8.03]
[1759130109415,1.02,207.97,207.84,8.03]
[1759130109624,1.20215244,207.96,207.84,8.03]
[1759130109820,4.3269,207.93,207.85,8.03]
[1759130111720,4.3269,207.93,207.85,12.3582]
[1759130111920,4.3269,207.93,207.86,8.03]
[1759130112117,5.3463,207.95,207.86,8.03]
[1759130112917,67.2896,207.98,207.88,7.62]
[1759130113123,1.02,207.96,207.88,7.62]
[1759130113516,67.2896,207.98,207.88,7.62]
[1759130113517,5.3469,207.93,207.88,7.62]
[1759130114518,1.02,207.93,207.83,7.62]
[1759130114720,1.02,207.92,207.83,7.62]
[1759130115118,4.3278,207.88,207.83,7.62]
[1759130115320,4.3278,207.88,207.82,7.62]
[1759130115615,68.955,207.84,207.78,8.09525846]
[1759130115815,68.955,207.84,207.74,8.09525846]
[1759130116225,68.955,207.84,207.73,8.09525846]
[1759130116627,4.3292,207.81,207.73,8.09525846]
[1759130117622,4.3292,207.81,207.74,7.62]
[1759130119121,4.3288,207.83,207.74,7.62]
[1759130119521,1.62,207.84,207.74,7.62]
[1759130119924,4.3292,207.82,207.74,7.62]
[1759130120426,1.62,207.84,207.74,7.62]
[1759130121624,4.3294,207.8,207.74,7.62]
[1759130121927,1.62,207.84,207.74,7.62]
[1759130122123,3.65601922,207.89,207.74,7.62]
[1759130122327,4.85851607,207.89,207.75,7.62]
[1759130122921,3.65601922,207.89,207.78,7.62]
[1759130123524,4.3282,207.86,207.78,7.62]
[1759130124024,4.3286,207.85,207.78,7.62]
[1759130130928,5.9588,207.83,207.74,8.09525846]
[1759130131131,5.9588,207.83,207.75,7.45]
[1759130131535,4.3294,207.81,207.75,7.45]
[1759130131935,1.63,207.83,207.75,7.45]
[1759130132931,68.9776,207.8,207.71,7.45]
[1759130133136,2.03601922,207.79,207.71,7.45]
[1759130134436,67.3544,207.78,207.67,8.93294471]
[1759130134645,1.63,207.77,207.68,7.45]
[1759130134831,67.3544,207.78,207.68,7.45]
[1759130135035,1.63,207.75,207.66,20.0041151]
[1759130135734,4.3313,207.72,207.66,20.0041151]
[1759130136642,5.9605,207.75,207.66,20.0041151]
[1759130139451,5.9605,207.75,207.67,7.45]
[1759130140648,4.3308,207.74,207.67,7.45]
[1759130144155,1.63,207.75,207.67,11.782]
[1759130144455,1.63,207.75,207.68,7.45]
[1759130145554,5.9598,207.79,207.7,7.45]
[1759130146052,1.63,207.79,207.7,7.45]
[1759130147052,67.3385,207.83,207.7,7.45]
[1759130147252,1.63,207.82,207.7,7.45]
[1759130147648,4.3295,207.8,207.7,7.45]
[1759130148252,4.3295,207.8,207.73,7.45]
[1759130149562,1.63,207.79,207.73,7.45]
[1759130153568,1.63,207.76,207.67,7.45]
[1759130153866,1.30422547,207.74,207.67,7.45]
[1759130154163,5.63502547,207.74,207.67,7.45]
[1759130154859,1.63,207.76,207.67,11.782]
[1759130154860,5.9603,207.76,207.67,11.782]
[1759130155063,2.93422547,207.76,207.68,7.53]
[1759130156066,1.63,207.76,207.69,7.53]
[1759130156565,4.3306,207.75,207.69,7.53]
[1759130158857,1.63,207.76,207.69,11.8616]
[1759130159065,5.63422547,207.77,207.7,7.53]
[1759130161159,5.63422547,207.77,207.69,4.3316]
[1759130161160,1.30422547,207.78,207.69,7.53]
[1759130162065,4.3297,207.79,207.69,7.53]
[1759130162269,5.63392547,207.79,207.69,7.53]
[1759130162566,5.63392547,207.79,207.71,4.3311]
[1759130162771,4.33,207.78,207.72,7.53]
[1759130163564,1.66,207.84,207.72,7.53]
[1759130163772,1.30422547,207.82,207.72,7.53]
[1759130164167,1.66,207.81,207.72,7.53]
[1759130164366,1.66,207.78,207.72,7.53]
[1759130164569,1.66,207.77,207.68,8.83422547]
[1759130164767,4.3303,207.76,207.68,8.83422547]
[1759130165169,1.30422547,207.77,207.68,8.83422547]
[1759130165877,5.63442547,207.77,207.69,7.53]
[1759130166773,4.3304,207.76,207.69,7.53]
[1759130167677,4.3307,207.74,207.68,11.8617]
[1759130167874,4.3307,207.74,207.68,7.53]
[1759130168067,1.66,207.75,207.68,7.53]
[1759130168270,68.66292547,207.77,207.66,12.5541151]
[1759130168670,1.66,207.76,207.66,12.5541151]
[1759130168874,1.30422547,207.74,207.66,12.5541151]
[1759130169075,67.3801,207.7,207.66,12.5541151]
[1759130169277,1.66,207.67,207.66,1.51e-05]
[1759130169475,2.96422547,207.67,207.66,1.51e-05]
[1759130170081,3.44422547,207.67,207.66,1.51e-05]
[1759130170578,122.74422547,207.67,207.66,1.51e-05]
[1759130170774,3.44422547,207.67,207.66,1.51e-05]
[1759130170976,1.66,207.65,207.54,8.83422547]
[1759130171174,1.30422547,207.59,207.49,8.09525846]
[1759130171369,1.66,207.55,207.47,7.53]
[1759130171671,5.994,207.59,207.48,1.30422547]
[1759130171879,1.66,207.59,207.49,7.53]
[1759130172073,1.66,207.59,207.49,8.83422547]
[1759130173778,5.63762547,207.61,207.51,7.82]
[1759130173974,1.30422547,207.6,207.51,7.82]
[1759130174174,1.30422547,207.57,207.44,7.82]
[1759130174374,1.67,207.58,207.5,7.82]
[1759130174973,1.30422547,207.6,207.5,7.82]
[1759130175576,1.67,207.63,207.5,7.82]
[1759130175577,1.30422547,207.62,207.5,7.82]
[1759130175975,5.63732547,207.62,207.5,12.1555]
[1759130176572,5.63732547,207.62,207.51,7.82]
[1759130176871,1.30422547,207.59,207.51,7.82]
[1759130177679,1.67,207.61,207.53,7.82]
[1759130179270,2.97422547,207.61,207.53,7.82]
[1759130180676,7.30762547,207.61,207.53,7.82]
[1759130180976,7.30762547,207.61,207.51,1.30422547]
[1759130180977,1.67,207.58,207.49,9.12422547]
[1759130181178,1.30422547,207.59,207.49,9.12422547]
[1759130181587,5.63802547,207.59,207.49,9.12422547]
[1759130182085,7.30802547,207.59,207.49,9.12422547]
[1759130182280,4.3342,207.57,207.49,9.12422547]
[1759130183382,2.97422547,207.59,207.49,7.82]
[1759130183776,2.97422547,207.59,207.5,7.86]
[1759130184088,1.67,207.59,207.5,7.86]
[1759130184982,6.0038,207.59,207.5,7.86]
[1759130185984,6.0038,207.59,207.5,12.1956]
[1759130186197,1.67,207.59,207.5,12.1956]
[1759130186677,1.67,207.59,207.5,7.86]
[1759130187186,1.30422547,207.58,207.5,7.86]
[1759130188090,1.64,207.57,207.46,4.3364]
[1759130188285,1.64,207.57,207.47,7.86]
[1759130189085,1.30422547,207.55,207.47,7.86]
[1759130192984,1.30422547,207.52,207.44,5.1753835]
[1759130193185,1.30422547,207.52,207.45,7.86]
[1759130193783,5.9748,207.54,207.45,7.86]
[1759130193987,1.30422547,207.52,207.45,7.86]
[1759130194880,1.30422547,207.49,207.41,7.86]
[1759130195689,5.64022547,207.49,207.41,7.86]
[1759130197288,1.30422547,207.49,207.41,7.86]
[1759130198294,1.64,207.5,207.41,7.86]
[1759130199387,4.3362,207.48,207.41,7.86]
[1759130200687,1.64,207.5,207.41,7.86]
[1759130200688,4.3357,207.5,207.41,7.86]
[1759130201693,1.64,207.57,207.42,9.16422547]
[1759130202002,1.64,207.57,207.45,9.16422547]
[1759130202294,1.30422547,207.56,207.45,7.86]
[1759130202495,1.30422547,207.55,207.45,7.86]
[1759130202689,1.64,207.57,207.46,1.30422547]
[1759130202889,1.30422547,207.59,207.49,1.30422547]
[1759130203081,1.64,207.62,207.49,1.30422547]
[1759130203082,1.30422547,207.6,207.5,7.86]
[1759130203594,1.30422547,207.6,207.52,7.86]
[1759130203792,4.3334,207.61,207.52,7.86]
[1759130203994,5.63762547,207.61,207.52,7.86]
[1759130204585,1.64,207.67,207.53,7.86]
[1759130204902,1.64,207.67,207.56,7.86]
[1759130205201,1.64,207.71,207.61,7.86]
[1759130205492,1.30422547,207.7,207.61,7.86]
[1759130205689,1.30422547,207.69,207.61,7.86]
[1759130206293,2.46067,207.61,207.58,1.30422547]
[1759130206692,2.46067,207.61,207.54,53.32]
[1759130206888,2.46067,207.61,207.47,67.4522]
[1759130207092,2.46067,207.61,207.53,67.63902547]
[1759130207797,2.46067,207.61,207.53,5.63902547]
[1759130208298,2.46067,207.61,207.56,1.30422547]
[1759130208602,1.30422547,207.59,207.48,7.86]
[1759130208797,4.334,207.58,207.48,7.86]
[1759130209500,5.63862547,207.56,207.48,7.86]
[1759130209995,4.3339,207.59,207.48,7.86]
[1759130211197,4.3339,207.59,207.49,4.3358]
[1759130211401,4.3339,207.59,207.5,7.86]
[1759130211602,10.16067,207.61,207.5,7.86]
[1759130211603,2.46067,207.61,207.5,7.86]
[1759130212601,4.3336,207.6,207.52,7.86]
[1759130214098,2.46067,207.61,207.53,4.3349]
[1759130214300,2.46067,207.61,207.54,7.49]
[1759130219309,10.29067,207.61,207.54,7.49]
[1759130220707,14.62407,207.61,207.54,7.49]
[1759130222502,10.29067,207.61,207.54,7.49]
[1759130222708,2.46067,207.61,207.54,7.49]
[1759130223905,1.56837626,207.61,207.58,7.49]
[1759130224106,1.56837626,207.61,207.59,7.49]
[1759130224309,1.56837626,207.61,207.59,2.52226545]
[1759130224504,4.3314,207.71,207.63,7.49]
[1759130226108,7.83,207.73,207.63,7.49]
[1759130227013,12.161,207.73,207.64,4.3325]
[1759130227215,12.161,207.73,207.65,7.49]
[1759130228306,4.3313,207.71,207.61,26.06394465]
[1759130228506,12.1613,207.71,207.61,26.06394465]
[1759130228711,67.3897,207.67,207.55,7.49]
[1759130228915,4.3331,207.63,207.55,7.49]
[1759130229111,7.83,207.64,207.55,7.49]
[1759130229612,4.3338,207.59,207.49,358.67525846]
[1759130229805,7.83,207.61,207.5,7.49]
[1759130229806,75.2393,207.61,207.5,7.49]
[1759130230012,7.83,207.58,207.46,7.49]
[1759130231712,4.3344,207.57,207.47,4.3361]
[1759130231911,4.3344,207.57,207.48,7.49]
[1759130233219,7.83,207.58,207.45,4.3367]
[1759130233520,7.88,207.55,207.44,7.43]
[1759130235721,7.88,207.58,207.46,7.43]
[1759130237121,4.3346,207.55,207.46,7.43]
[1759130237510,7.88,207.58,207.46,7.43]
[1759130237716,12.2141,207.58,207.47,4.3362]
[1759130238112,7.88,207.58,207.47,4.3362]
[1759130239223,7.88,207.58,207.49,4.3358]
[1759130240128,4.3343,207.57,207.48,7.43]
[1759130240925,7.88,207.55,207.48,7.43]
[1759130242027,4.334,207.58,207.48,7.43]
[1759130242821,4.334,207.58,207.49,4.3358]
[1759130243422,4.334,207.58,207.5,7.43]
[1759130243620,7.88,207.63,207.51,67.4407]
[1759130243828,7.88,207.63,207.52,7.43]
[1759130244326,7.88,207.63,207.53,7.64]
[1759130244526,7.88,207.63,207.55,4.3344]
[1759130246928,7.88,207.63,207.53,7.64]
[1759130247831,4.3335,207.61,207.53,7.64]
[1759130248734,4.3338,207.6,207.53,7.64]
[1759130248933,11.9538,207.6,207.53,7.64]
[1759130249642,7.62,207.6,207.49,7.64]
[1759130251833,7.62,207.6,207.53,11.9748]
[1759130252836,7.62,207.6,207.49,119.94]
[1759130252837,4.333,207.63,207.55,7.64]
[1759130253530,11.9526,207.65,207.55,7.64]
[1759130254033,7.62,207.65,207.58,4.334]
[1759130254631,7.62,207.65,207.55,11.9744]
[1759130255532,11.9527,207.65,207.55,11.9744]
[1759130258930,4.3329,207.64,207.55,11.9744]
[1759130261444,4.3331,207.63,207.55,11.9744]
[1759130262739,4.3331,207.63,207.55,7.64]
[1759130263536,67.3994,207.64,207.55,7.64]
[1759130263732,67.3994,207.64,207.5,67.5956]
[1759130263733,7.62,207.63,207.51,7.64]
[1759130264543,4.3337,207.6,207.51,7.64]
[1759130264739,11.9537,207.6,207.51,7.64]
[1759130265039,7.62,207.6,207.51,7.64]
[1759130266541,4.334,207.59,207.51,7.64]
[1759130267843,4.3341,207.58,207.51,7.64]
[1759130268243,4.3343,207.57,207.51,7.64]
[1759130269840,7.62,207.55,207.51,7.64]
[1759130271349,7.62,207.56,207.47,7.64]
[1759130271541,7.62,207.57,207.47,7.64]
[1759130273642,4.3344,207.56,207.47,7.64]
[1759130274147,7.62,207.57,207.47,7.64]
[1759130274346,1.30748591,207.55,207.47,7.64]
[1759130275650,5.64218591,207.55,207.47,7.64]
[1759130275952,1.30748591,207.55,207.47,7.64]
[1759130276954,4.335,207.54,207.47,7.64]
[1759130277549,1.30748591,207.52,207.47,7.64]
[1759130277754,1.30748591,207.52,207.45,8.09525846]
[1759130277755,8.69748591,207.52,207.45,7.49]
[1759130278655,13.03288591,207.52,207.45,7.49]
[1759130280455,4.3356,207.51,207.45,7.49]
[1759130281651,8.69748591,207.52,207.45,7.49]
[1759130281860,1.30748591,207.55,207.45,7.49]
[1759130283662,4.335,207.54,207.46,7.49]
[1759130285671,4.3352,207.53,207.46,7.49]
[1759130286071,7.39,207.54,207.46,7.49]
[1759130286268,1.30748591,207.52,207.46,7.49]
[1759130286475,7.39,207.51,207.42,16.89274437]
[1759130286673,7.39,207.51,207.42,15.58525846]
[1759130286976,7.39,207.45,207.37,7.49]
[1759130288370,4.3373,207.43,207.37,7.49]
[1759130289172,7.39,207.45,207.37,7.49]
[1759130290674,11.7269,207.45,207.37,7.49]
[1759130290969,1.30748591,207.46,207.37,7.49]
[1759130291767,1.30748591,207.46,207.38,4.3381]
[1759130296776,1.30748591,207.46,207.39,7.95]
[1759130297079,1.30748591,207.47,207.39,12.2878]
[1759130297581,5.64378591,207.47,207.39,7.95]
[1759130297877,1.30748591,207.47,207.39,7.95]
[1759130298178,13.28498591,207.42,207.33,7.95]
[1759130298977,4.3377,207.41,207.33,7.95]
[1759130300683,4.3377,207.41,207.33,12.289]
[1759130302375,0.83911025,207.51,207.32,0.83909002]
[1759130302576,7.64,207.46,207.37,7.95]
[1759130302772,8.94748591,207.46,207.37,7.95]
[1759130304681,8.94748591,207.46,207.39,4.3378]
[1759130304882,8.94748591,207.46,207.37,7.95]
[1759130305079,7.69,207.4,207.32,0.83909002]
[1759130305287,7.69,207.37,207.26,7.41]
[1759130305479,67.461,207.45,207.26,8.71748591]
[1759130305679,143.5483,207.52,207.3,7.41]
[1759130305680,127.53,207.44,207.3,7.41]
[1759130305874,12.027,207.44,207.32,1.30748591]
[1759130306084,13.33448591,207.44,207.33,7.41]
[1759130306384,7.69,207.44,207.36,7.41]
[1759130308383,8.99748591,207.44,207.36,7.41]
[1759130308884,7.69,207.44,207.37,1.30748591]
[1759130309494,7.69,207.47,207.38,7.41]
[1759130310388,7.69,207.47,207.39,8.71748591]
[1759130312082,1.19952167,207.5,207.42,7.41]
[1759130313894,1.19952167,207.5,207.43,1.30748591]
[1759130314085,1.19952167,207.5,207.44,7.41]
[1759130314286,1.19952167,207.5,207.44,11.7468]
[1759130315592,1.19952167,207.5,207.44,7.41]
[1759130317099,1.19952167,207.5,207.44,8.71748591]
[1759130319702,8.99748591,207.55,207.46,8.71748591]
[1759130320293,4.335,207.53,207.46,8.71748591]
[1759130322906,4.335,207.53,207.46,7.41]
[1759130324302,13.33208591,207.55,207.46,8.71748591]
[1759130324502,13.33208591,207.55,207.49,7.41]
[1759130324503,12.0246,207.55,207.49,7.41]
[1759130326003,5.64168591,207.57,207.49,7.41]
[1759130326613,4.3342,207.57,207.49,7.41]
[1759130327209,1.30748591,207.55,207.49,7.41]
[1759130328605,12.025,207.54,207.49,7.41]
[1759130328907,12.025,207.54,207.47,7.41]
[1759130329504,4.3353,207.52,207.46,7.41]
[1759130330909,4.3356,207.51,207.46,7.41]
[1759130331106,7.69,207.5,207.46,7.41]
[1759130331410,7.69,207.5,207.42,4.3371]
[1759130331609,7.69,207.5,207.41,8.71748591]
[1759130331805,1.30748591,207.49,207.41,7.41]
[1759130332010,8.99748591,207.49,207.41,7.41]
[1759130332307,7.69,207.49,207.41,7.41]
[1759130333613,4.3362,207.48,207.41,7.41]
[1759130335516,4.3362,207.48,207.41,11.7473]
[1759130338909,7.69,207.49,207.43,7.41]
[1759130339111,7.95,207.53,207.43,7.41]
[1759130340612,7.95,207.53,207.44,7.41]
[1759130341417,7.95,207.57,207.45,7.41]
[1759130341611,7.95,207.57,207.46,2.04421563]
[1759130341819,7.95,207.57,207.47,7.41]
[1759130342016,12.2842,207.57,207.49,4.3358]
[1759130342220,12.2842,207.57,207.5,7.41]
[1759130343121,7.95,207.55,207.47,11.7462]
[1759130345119,7.95,207.55,207.48,4.3359]
[1759130345917,4.3345,207.56,207.5,7.41]
[1759130346221,4.334,207.58,207.5,7.41]
[1759130346422,4.334,207.58,207.5,11.7455]
[1759130349021,7.95,207.59,207.52,4.335]
[1759130350728,7.95,207.59,207.51,7.41]
[1759130351726,12.2839,207.59,207.51,7.41]
[1759130351922,12.2839,207.59,207.51,11.7452]
[1759130352119,7.95,207.59,207.52,7.41]
[1759130352424,9.17464264,207.63,207.53,7.41]
[1759130352621,9.17464264,207.63,207.56,7.44]
[1759130353519,7.95,207.63,207.56,7.44]
[1759130353828,4.3325,207.65,207.58,7.44]
[1759130356218,7.68,207.66,207.58,7.44]
[1759130357324,4.3327,207.64,207.58,7.44]
[1759130357726,12.0131,207.63,207.53,11.7749]
[1759130358028,7.68,207.62,207.53,7.44]
[1759130358327,4.3339,207.59,207.53,7.44]
[1759130358532,7.68,207.58,207.53,7.44]
[1759130359530,12.0139,207.59,207.53,7.44]
[1759130362834,7.68,207.59,207.53,11.7748]
[1759130363135,4.3333,207.62,207.54,7.44]
[1759130363527,7.68,207.6,207.54,7.44]
[1759130364133,12.0137,207.6,207.54,7.44]
[1759130367333,12.0137,207.6,207.51,4.3354]
[1759130368645,4.3339,207.59,207.51,4.3354]
[1759130370841,4.3339,207.59,207.52,7.37]
[1759130372640,4.3339,207.59,207.52,11.7051]
[1759130378343,69.45281563,207.61,207.49,7.37]
[1759130378546,7.41,207.6,207.49,7.37]
[1759130378737,4.3347,207.55,207.49,7.37]
[1759130378937,11.7447,207.55,207.49,7.37]
[1759130384047,67.4159,207.59,207.46,11.7065]
[1759130384048,7.41,207.53,207.46,11.7065]
[1759130386260,7.41,207.53,207.47,4.3361]
[1759130390661,4.3347,207.55,207.49,7.37]
[1759130390959,7.41,207.56,207.49,7.37]
[1759130391162,7.41,207.56,207.52,7.37]
[1759130392757,4.3338,207.59,207.52,11.7051]
[1759130393762,7.28,207.58,207.52,11.7051]
[1759130398073,7.28,207.58,207.53,4.3348]
[1759130398271,7.28,207.62,207.55,1.30693638]
[1759130398476,7.28,207.66,207.58,7.52]
[1759130399674,11.6123,207.66,207.58,7.52]
[1759130401869,4.3327,207.65,207.58,7.52]
[1759130402070,5.63963638,207.65,207.58,7.52]
[1759130402274,7.28,207.64,207.58,7.52]
[1759130403970,11.6129,207.64,207.55,5.64133638]
[1759130404876,12.91983638,207.64,207.56,7.52]
[1759130409685,4.3331,207.63,207.56,7.52]
[1759130410083,7.28,207.63,207.52,11.855]
[1759130410386,7.28,207.6,207.52,13.16193638]
[1759130410776,7.28,207.63,207.56,1.30693638]
[1759130411078,7.28,207.63,207.57,7.52]
[1759130413989,7.28,207.63,207.57,11.854]
[1759130416289,7.28,207.63,207.57,7.52]
[1759130418187,11.6129,207.63,207.57,7.52]
[1759130421996,4.3334,207.61,207.54,1.30693638]
[1759130422193,11.9534,207.61,207.54,9.12693638]
[1759130423486,7.62,207.61,207.55,4.3345]
[1759130423883,7.62,207.61,207.56,7.72]
[1759130424087,4.3329,207.63,207.55,5.64143638]
[1759130424295,7.26,207.62,207.56,7.72]
[1759130424491,11.5932,207.62,207.56,7.72]
[1759130425389,4.3335,207.61,207.56,7.72]
[1759130425590,7.26,207.6,207.56,7.72]
[1759130425798,1.30693638,207.57,207.51,7.72]
[1759130426095,7.26,207.55,207.48,4.3359]
[1759130426598,12.90083638,207.59,207.51,7.72]
[1759130426899,8.56693638,207.59,207.51,7.72]
[1759130428595,4.3342,207.58,207.51,7.72]
[1759130428797,8.56693638,207.59,207.51,12.0552]
[1759130432197,8.56693638,207.59,207.52,7.72]
[1759130432502,7.26,207.59,207.52,12.055]
[1759130433006,1.30693638,207.61,207.54,7.72]
[1759130434304,5.64043638,207.61,207.54,7.72]
[1759130434499,1.30693638,207.59,207.5,7.72]
[1759130435300,4.334,207.58,207.52,7.72]
[1759130436097,1.30693638,207.59,207.52,7.72]
[1759130437400,5.64083638,207.59,207.52,7.72]
[1759130438305,4.3342,207.58,207.52,7.72]
[1759130440200,1.30693638,207.59,207.52,7.72]
[1759130440407,11.5936,207.6,207.52,9.02693638]
[1759130441205,7.26,207.6,207.53,7.72]
[1759130441911,11.5936,207.6,207.53,7.72]